{"text_format":"3","workbook":"xlsx","n_sheets":4,"sheets":["RENGINIAI","KALENDORIUS","SPAUSDINAMA VERSIJA","ADMINISTRAVIMAS"],"not_rendered":{"defined_names":18},"read":"whole","date_system":"1900"}

{"sheet":"RENGINIAI","index":0,"n_rows":38,"n_cols":5,"rows_kept":38}
[]
[null,"MĖNESINIŲ BENDRUOMENĖS"]
[null,"RENGINIŲ PLANAVIMO PRIEMONĖ"]
[]
[]
[]
[]
[null,"DATA","DIENA","MĖNUO","ĮVYKIO PAVADINIMAS"]
[null,"2016-07-01",{"$f":"IF(ISBLANK(lentĮvykiai[[#This Row],[DATA]]),\"\",UPPER(TEXT(lentĮvykiai[[#This Row],[DATA]],\"ddd\")))","v":"PN"},{"$f":"IF(ISBLANK(lentĮvykiai[[#This Row],[DATA]]),\"\",UPPER(TEXT(lentĮvykiai[[#This Row],[DATA]],\"mmm\")))","v":"LIE"},"Bendruomenės sodas"]
[null,"2016-07-01",{"$f":"IF(ISBLANK(lentĮvykiai[[#This Row],[DATA]]),\"\",UPPER(TEXT(lentĮvykiai[[#This Row],[DATA]],\"ddd\")))","v":"PN"},{"$f":"IF(ISBLANK(lentĮvykiai[[#This Row],[DATA]]),\"\",UPPER(TEXT(lentĮvykiai[[#This Row],[DATA]],\"mmm\")))","v":"LIE"},"Miesto taryba"]
[null,"2016-07-02",{"$f":"IF(ISBLANK(lentĮvykiai[[#This Row],[DATA]]),\"\",UPPER(TEXT(lentĮvykiai[[#This Row],[DATA]],\"ddd\")))","v":"ŠT"},{"$f":"IF(ISBLANK(lentĮvykiai[[#This Row],[DATA]]),\"\",UPPER(TEXT(lentĮvykiai[[#This Row],[DATA]],\"mmm\")))","v":"LIE"},"Bendruomenės sodas"]
[null,"2016-07-03",{"$f":"IF(ISBLANK(lentĮvykiai[[#This Row],[DATA]]),\"\",UPPER(TEXT(lentĮvykiai[[#This Row],[DATA]],\"ddd\")))","v":"SK"},{"$f":"IF(ISBLANK(lentĮvykiai[[#This Row],[DATA]]),\"\",UPPER(TEXT(lentĮvykiai[[#This Row],[DATA]],\"mmm\")))","v":"LIE"},"Kino naktis parke"]
[null,"2016-07-08",{"$f":"IF(ISBLANK(lentĮvykiai[[#This Row],[DATA]]),\"\",UPPER(TEXT(lentĮvykiai[[#This Row],[DATA]],\"ddd\")))","v":"PN"},{"$f":"IF(ISBLANK(lentĮvykiai[[#This Row],[DATA]]),\"\",UPPER(TEXT(lentĮvykiai[[#This Row],[DATA]],\"mmm\")))","v":"LIE"},"Miesto taryba"]
[null,"2016-07-11",{"$f":"IF(ISBLANK(lentĮvykiai[[#This Row],[DATA]]),\"\",UPPER(TEXT(lentĮvykiai[[#This Row],[DATA]],\"ddd\")))","v":"PR"},{"$f":"IF(ISBLANK(lentĮvykiai[[#This Row],[DATA]]),\"\",UPPER(TEXT(lentĮvykiai[[#This Row],[DATA]],\"mmm\")))","v":"LIE"},"Bendruomenės salė Oficialūs pietūs"]
[null,"2016-07-12",{"$f":"IF(ISBLANK(lentĮvykiai[[#This Row],[DATA]]),\"\",UPPER(TEXT(lentĮvykiai[[#This Row],[DATA]],\"ddd\")))","v":"AN"},{"$f":"IF(ISBLANK(lentĮvykiai[[#This Row],[DATA]]),\"\",UPPER(TEXT(lentĮvykiai[[#This Row],[DATA]],\"mmm\")))","v":"LIE"},"Senienų paroda"]
[null,"2016-07-14",{"$f":"IF(ISBLANK(lentĮvykiai[[#This Row],[DATA]]),\"\",UPPER(TEXT(lentĮvykiai[[#This Row],[DATA]],\"ddd\")))","v":"KT"},{"$f":"IF(ISBLANK(lentĮvykiai[[#This Row],[DATA]]),\"\",UPPER(TEXT(lentĮvykiai[[#This Row],[DATA]],\"mmm\")))","v":"LIE"},"Bendruomenės seminaras"]
[null,"2016-07-15",{"$f":"IF(ISBLANK(lentĮvykiai[[#This Row],[DATA]]),\"\",UPPER(TEXT(lentĮvykiai[[#This Row],[DATA]],\"ddd\")))","v":"PN"},{"$f":"IF(ISBLANK(lentĮvykiai[[#This Row],[DATA]]),\"\",UPPER(TEXT(lentĮvykiai[[#This Row],[DATA]],\"mmm\")))","v":"LIE"},"Miesto taryba"]
[null,"2016-07-19",{"$f":"IF(ISBLANK(lentĮvykiai[[#This Row],[DATA]]),\"\",UPPER(TEXT(lentĮvykiai[[#This Row],[DATA]],\"ddd\")))","v":"AN"},{"$f":"IF(ISBLANK(lentĮvykiai[[#This Row],[DATA]]),\"\",UPPER(TEXT(lentĮvykiai[[#This Row],[DATA]],\"mmm\")))","v":"LIE"},"Strateginio planavimo seminaras"]
[null,"2016-07-20",{"$f":"IF(ISBLANK(lentĮvykiai[[#This Row],[DATA]]),\"\",UPPER(TEXT(lentĮvykiai[[#This Row],[DATA]],\"ddd\")))","v":"TR"},{"$f":"IF(ISBLANK(lentĮvykiai[[#This Row],[DATA]]),\"\",UPPER(TEXT(lentĮvykiai[[#This Row],[DATA]],\"mmm\")))","v":"LIE"},"Parko valymas"]
[null,"2016-07-22",{"$f":"IF(ISBLANK(lentĮvykiai[[#This Row],[DATA]]),\"\",UPPER(TEXT(lentĮvykiai[[#This Row],[DATA]],\"ddd\")))","v":"PN"},{"$f":"IF(ISBLANK(lentĮvykiai[[#This Row],[DATA]]),\"\",UPPER(TEXT(lentĮvykiai[[#This Row],[DATA]],\"mmm\")))","v":"LIE"},"Miesto taryba"]
[null,"2016-07-26",{"$f":"IF(ISBLANK(lentĮvykiai[[#This Row],[DATA]]),\"\",UPPER(TEXT(lentĮvykiai[[#This Row],[DATA]],\"ddd\")))","v":"AN"},{"$f":"IF(ISBLANK(lentĮvykiai[[#This Row],[DATA]]),\"\",UPPER(TEXT(lentĮvykiai[[#This Row],[DATA]],\"mmm\")))","v":"LIE"},"Miesto centro apžvalga pėsčiomis"]
[null,"2016-07-26",{"$f":"IF(ISBLANK(lentĮvykiai[[#This Row],[DATA]]),\"\",UPPER(TEXT(lentĮvykiai[[#This Row],[DATA]],\"ddd\")))","v":"AN"},{"$f":"IF(ISBLANK(lentĮvykiai[[#This Row],[DATA]]),\"\",UPPER(TEXT(lentĮvykiai[[#This Row],[DATA]],\"mmm\")))","v":"LIE"},"Per barus"]
[null,"2016-07-29",{"$f":"IF(ISBLANK(lentĮvykiai[[#This Row],[DATA]]),\"\",UPPER(TEXT(lentĮvykiai[[#This Row],[DATA]],\"ddd\")))","v":"PN"},{"$f":"IF(ISBLANK(lentĮvykiai[[#This Row],[DATA]]),\"\",UPPER(TEXT(lentĮvykiai[[#This Row],[DATA]],\"mmm\")))","v":"LIE"},"Miesto taryba"]
[null,"2016-08-05",{"$f":"IF(ISBLANK(lentĮvykiai[[#This Row],[DATA]]),\"\",UPPER(TEXT(lentĮvykiai[[#This Row],[DATA]],\"ddd\")))","v":"PN"},{"$f":"IF(ISBLANK(lentĮvykiai[[#This Row],[DATA]]),\"\",UPPER(TEXT(lentĮvykiai[[#This Row],[DATA]],\"mmm\")))","v":"RGP"},"Miesto taryba"]
[null,"2016-08-10",{"$f":"IF(ISBLANK(lentĮvykiai[[#This Row],[DATA]]),\"\",UPPER(TEXT(lentĮvykiai[[#This Row],[DATA]],\"ddd\")))","v":"TR"},{"$f":"IF(ISBLANK(lentĮvykiai[[#This Row],[DATA]]),\"\",UPPER(TEXT(lentĮvykiai[[#This Row],[DATA]],\"mmm\")))","v":"RGP"},"Parko valymas"]
[null,"2016-08-12",{"$f":"IF(ISBLANK(lentĮvykiai[[#This Row],[DATA]]),\"\",UPPER(TEXT(lentĮvykiai[[#This Row],[DATA]],\"ddd\")))","v":"PN"},{"$f":"IF(ISBLANK(lentĮvykiai[[#This Row],[DATA]]),\"\",UPPER(TEXT(lentĮvykiai[[#This Row],[DATA]],\"mmm\")))","v":"RGP"},"Miesto taryba"]
[null,"2016-08-13",{"$f":"IF(ISBLANK(lentĮvykiai[[#This Row],[DATA]]),\"\",UPPER(TEXT(lentĮvykiai[[#This Row],[DATA]],\"ddd\")))","v":"ŠT"},{"$f":"IF(ISBLANK(lentĮvykiai[[#This Row],[DATA]]),\"\",UPPER(TEXT(lentĮvykiai[[#This Row],[DATA]],\"mmm\")))","v":"RGP"},"Bendruomenės sodas"]
[null,"2016-09-01",{"$f":"IF(ISBLANK(lentĮvykiai[[#This Row],[DATA]]),\"\",UPPER(TEXT(lentĮvykiai[[#This Row],[DATA]],\"ddd\")))","v":"KT"},{"$f":"IF(ISBLANK(lentĮvykiai[[#This Row],[DATA]]),\"\",UPPER(TEXT(lentĮvykiai[[#This Row],[DATA]],\"mmm\")))","v":"RGS"},"Biudžeto komitetas"]
[null,"2016-10-01",{"$f":"IF(ISBLANK(lentĮvykiai[[#This Row],[DATA]]),\"\",UPPER(TEXT(lentĮvykiai[[#This Row],[DATA]],\"ddd\")))","v":"ŠT"},{"$f":"IF(ISBLANK(lentĮvykiai[[#This Row],[DATA]]),\"\",UPPER(TEXT(lentĮvykiai[[#This Row],[DATA]],\"mmm\")))","v":"SPL"},"Biudžeto komitetas"]
[null,"2016-11-03",{"$f":"IF(ISBLANK(lentĮvykiai[[#This Row],[DATA]]),\"\",UPPER(TEXT(lentĮvykiai[[#This Row],[DATA]],\"ddd\")))","v":"KT"},{"$f":"IF(ISBLANK(lentĮvykiai[[#This Row],[DATA]]),\"\",UPPER(TEXT(lentĮvykiai[[#This Row],[DATA]],\"mmm\")))","v":"LAP"},"Biudžeto komitetas"]
[null,"2016-12-01",{"$f":"IF(ISBLANK(lentĮvykiai[[#This Row],[DATA]]),\"\",UPPER(TEXT(lentĮvykiai[[#This Row],[DATA]],\"ddd\")))","v":"KT"},{"$f":"IF(ISBLANK(lentĮvykiai[[#This Row],[DATA]]),\"\",UPPER(TEXT(lentĮvykiai[[#This Row],[DATA]],\"mmm\")))","v":"GRD"},"Biudžeto komitetas"]
[null,"2017-01-01",{"$f":"IF(ISBLANK(lentĮvykiai[[#This Row],[DATA]]),\"\",UPPER(TEXT(lentĮvykiai[[#This Row],[DATA]],\"ddd\")))","v":"SK"},{"$f":"IF(ISBLANK(lentĮvykiai[[#This Row],[DATA]]),\"\",UPPER(TEXT(lentĮvykiai[[#This Row],[DATA]],\"mmm\")))","v":"SAU"},"Biudžeto komitetas"]
[null,"2017-02-02",{"$f":"IF(ISBLANK(lentĮvykiai[[#This Row],[DATA]]),\"\",UPPER(TEXT(lentĮvykiai[[#This Row],[DATA]],\"ddd\")))","v":"KT"},{"$f":"IF(ISBLANK(lentĮvykiai[[#This Row],[DATA]]),\"\",UPPER(TEXT(lentĮvykiai[[#This Row],[DATA]],\"mmm\")))","v":"VAS"},"Biudžeto komitetas"]
[null,"2017-03-02",{"$f":"IF(ISBLANK(lentĮvykiai[[#This Row],[DATA]]),\"\",UPPER(TEXT(lentĮvykiai[[#This Row],[DATA]],\"ddd\")))","v":"KT"},{"$f":"IF(ISBLANK(lentĮvykiai[[#This Row],[DATA]]),\"\",UPPER(TEXT(lentĮvykiai[[#This Row],[DATA]],\"mmm\")))","v":"KOV"},"Biudžeto komitetas"]
[null,"2017-04-01",{"$f":"IF(ISBLANK(lentĮvykiai[[#This Row],[DATA]]),\"\",UPPER(TEXT(lentĮvykiai[[#This Row],[DATA]],\"ddd\")))","v":"ŠT"},{"$f":"IF(ISBLANK(lentĮvykiai[[#This Row],[DATA]]),\"\",UPPER(TEXT(lentĮvykiai[[#This Row],[DATA]],\"mmm\")))","v":"BAL"},"Biudžeto komitetas"]
[null,"2017-05-01",{"$f":"IF(ISBLANK(lentĮvykiai[[#This Row],[DATA]]),\"\",UPPER(TEXT(lentĮvykiai[[#This Row],[DATA]],\"ddd\")))","v":"PR"},{"$f":"IF(ISBLANK(lentĮvykiai[[#This Row],[DATA]]),\"\",UPPER(TEXT(lentĮvykiai[[#This Row],[DATA]],\"mmm\")))","v":"GEG"},"Biudžeto komitetas"]
[null,"2017-06-01",{"$f":"IF(ISBLANK(lentĮvykiai[[#This Row],[DATA]]),\"\",UPPER(TEXT(lentĮvykiai[[#This Row],[DATA]],\"ddd\")))","v":"KT"},{"$f":"IF(ISBLANK(lentĮvykiai[[#This Row],[DATA]]),\"\",UPPER(TEXT(lentĮvykiai[[#This Row],[DATA]],\"mmm\")))","v":"BIR"},"Biudžeto komitetas"]
[null,"2017-06-02",{"$f":"IF(ISBLANK(lentĮvykiai[[#This Row],[DATA]]),\"\",UPPER(TEXT(lentĮvykiai[[#This Row],[DATA]],\"ddd\")))","v":"PN"},{"$f":"IF(ISBLANK(lentĮvykiai[[#This Row],[DATA]]),\"\",UPPER(TEXT(lentĮvykiai[[#This Row],[DATA]],\"mmm\")))","v":"BIR"},"Miesto taryba"]

{"sheet":"KALENDORIUS","index":1,"n_rows":35,"n_cols":21,"rows_kept":35,"merged":[[1,5,1,11],[30,8,34,20]]}
[]
[null,null,2016,null,null,{"$f":"LOOKUP(MėnesioNr,lentMėnesiai[SKAIČIUS],lentMėnesiai[MĖNUO])","v":"LIEPA"}]
[null,null,7,null,null,{"$f":"DATE(PeržiūrėtiMetus,MėnesioNr,1)","v":"2016-07-01"},null,null,{"$f":"WEEKDAY(PradžiosData)","v":6}]
[null,null,"PR",null,null,"AN",null,null,"TR",null,null,"KT",null,null,"PN",null,null,"ŠT",null,null,"SK"]
[]
[null,null,{"$f":"PradžiosData-(WEEKDAY(PradžiosData)-2)+{0;1;2;3;4;5}*7 +{1,2,3,4,5,6,7}-3+COLUMN(B1)","v":"2016-06-27"},null,null,{"$f":"PradžiosData-(WEEKDAY(PradžiosData)-2)+{0;1;2;3;4;5}*7 +{1,2,3,4,5,6,7}-3+COLUMN(C1)","v":"2016-06-28"},null,null,{"$f":"PradžiosData-(WEEKDAY(PradžiosData)-2)+{0;1;2;3;4;5}*7 +{1,2,3,4,5,6,7}-3+COLUMN(D1)","v":"2016-06-29"},null,null,{"$f":"PradžiosData-(WEEKDAY(PradžiosData)-2)+{0;1;2;3;4;5}*7 +{1,2,3,4,5,6,7}-3+COLUMN(E1)","v":"2016-06-30"},null,null,{"$f":"PradžiosData-(WEEKDAY(PradžiosData)-2)+{0;1;2;3;4;5}*7 +{1,2,3,4,5,6,7}-3+COLUMN(F1)","v":"2016-07-01"},null,null,{"$f":"PradžiosData-(WEEKDAY(PradžiosData)-2)+{0;1;2;3;4;5}*7 +{1,2,3,4,5,6,7}-3+COLUMN(G1)","v":"2016-07-02"},null,null,{"$f":"PradžiosData-(WEEKDAY(PradžiosData)-2)+{0;1;2;3;4;5}*7 +{1,2,3,4,5,6,7}-3+COLUMN(H1)","v":"2016-07-03"}]
[null,null,{"$f":"IFERROR(INDEX(lentĮvykiai[],SMALL(IF(Datos=C$6,ROW(Datos)),ROW(1:1))-PradinėLentelėsEilutė,4),\"\")","v":""},null,null,{"$f":"IFERROR(INDEX(lentĮvykiai[],SMALL(IF(Datos=F$6,ROW(Datos)),ROW(1:1))-PradinėLentelėsEilutė,4),\"\")","v":""},null,null,{"$f":"IFERROR(INDEX(lentĮvykiai[],SMALL(IF(Datos=I$6,ROW(Datos)),ROW(1:1))-PradinėLentelėsEilutė,4),\"\")","v":""},null,null,{"$f":"IFERROR(INDEX(lentĮvykiai[],SMALL(IF(Datos=L$6,ROW(Datos)),ROW(1:1))-PradinėLentelėsEilutė,4),\"\")","v":""},null,null,{"$f":"IFERROR(INDEX(lentĮvykiai[],SMALL(IF(Datos=O$6,ROW(Datos)),ROW(1:1))-PradinėLentelėsEilutė,4),\"\")","v":"Bendruomenės sodas"},null,null,{"$f":"IFERROR(INDEX(lentĮvykiai[],SMALL(IF(Datos=R$6,ROW(Datos)),ROW(1:1))-PradinėLentelėsEilutė,4),\"\")","v":"Bendruomenės sodas"},null,null,{"$f":"IFERROR(INDEX(lentĮvykiai[],SMALL(IF(Datos=U$6,ROW(Datos)),ROW(1:1))-PradinėLentelėsEilutė,4),\"\")","v":"Kino naktis parke"}]
[null,null,{"$f":"IFERROR(INDEX(lentĮvykiai[],SMALL(IF(Datos=C$6,ROW(Datos)),ROW(2:2))-PradinėLentelėsEilutė,4),\"\")","v":""},null,null,{"$f":"IFERROR(INDEX(lentĮvykiai[],SMALL(IF(Datos=F$6,ROW(Datos)),ROW(2:2))-PradinėLentelėsEilutė,4),\"\")","v":""},null,null,{"$f":"IFERROR(INDEX(lentĮvykiai[],SMALL(IF(Datos=I$6,ROW(Datos)),ROW(2:2))-PradinėLentelėsEilutė,4),\"\")","v":""},null,null,{"$f":"IFERROR(INDEX(lentĮvykiai[],SMALL(IF(Datos=L$6,ROW(Datos)),ROW(2:2))-PradinėLentelėsEilutė,4),\"\")","v":""},null,null,{"$f":"IFERROR(INDEX(lentĮvykiai[],SMALL(IF(Datos=O$6,ROW(Datos)),ROW(2:2))-PradinėLentelėsEilutė,4),\"\")","v":"Miesto taryba"},null,null,{"$f":"IFERROR(INDEX(lentĮvykiai[],SMALL(IF(Datos=R$6,ROW(Datos)),ROW(2:2))-PradinėLentelėsEilutė,4),\"\")","v":""},null,null,{"$f":"IFERROR(INDEX(lentĮvykiai[],SMALL(IF(Datos=U$6,ROW(Datos)),ROW(2:2))-PradinėLentelėsEilutė,4),\"\")","v":""}]
[null,null,{"$f":"IFERROR(INDEX(lentĮvykiai[],SMALL(IF(Datos=C$6,ROW(Datos)),ROW(3:3))-PradinėLentelėsEilutė,4),\"\")","v":""},null,null,{"$f":"IFERROR(INDEX(lentĮvykiai[],SMALL(IF(Datos=F$6,ROW(Datos)),ROW(3:3))-PradinėLentelėsEilutė,4),\"\")","v":""},null,null,{"$f":"IFERROR(INDEX(lentĮvykiai[],SMALL(IF(Datos=I$6,ROW(Datos)),ROW(3:3))-PradinėLentelėsEilutė,4),\"\")","v":""},null,null,{"$f":"IFERROR(INDEX(lentĮvykiai[],SMALL(IF(Datos=L$6,ROW(Datos)),ROW(3:3))-PradinėLentelėsEilutė,4),\"\")","v":""},null,null,{"$f":"IFERROR(INDEX(lentĮvykiai[],SMALL(IF(Datos=O$6,ROW(Datos)),ROW(3:3))-PradinėLentelėsEilutė,4),\"\")","v":""},null,null,{"$f":"IFERROR(INDEX(lentĮvykiai[],SMALL(IF(Datos=R$6,ROW(Datos)),ROW(3:3))-PradinėLentelėsEilutė,4),\"\")","v":""},null,null,{"$f":"IFERROR(INDEX(lentĮvykiai[],SMALL(IF(Datos=U$6,ROW(Datos)),ROW(3:3))-PradinėLentelėsEilutė,4),\"\")","v":""}]
[null,null,{"$f":"IFERROR(INDEX(lentĮvykiai[],SMALL(IF(Datos=C$6,ROW(Datos)),ROW(4:4))-PradinėLentelėsEilutė,4),\"\")","v":""},null,null,{"$f":"IFERROR(INDEX(lentĮvykiai[],SMALL(IF(Datos=F$6,ROW(Datos)),ROW(4:4))-PradinėLentelėsEilutė,4),\"\")","v":""},null,null,{"$f":"IFERROR(INDEX(lentĮvykiai[],SMALL(IF(Datos=I$6,ROW(Datos)),ROW(4:4))-PradinėLentelėsEilutė,4),\"\")","v":""},null,null,{"$f":"IFERROR(INDEX(lentĮvykiai[],SMALL(IF(Datos=L$6,ROW(Datos)),ROW(4:4))-PradinėLentelėsEilutė,4),\"\")","v":""},null,null,{"$f":"IFERROR(INDEX(lentĮvykiai[],SMALL(IF(Datos=O$6,ROW(Datos)),ROW(4:4))-PradinėLentelėsEilutė,4),\"\")","v":""},null,null,{"$f":"IFERROR(INDEX(lentĮvykiai[],SMALL(IF(Datos=R$6,ROW(Datos)),ROW(4:4))-PradinėLentelėsEilutė,4),\"\")","v":""},null,null,{"$f":"IFERROR(INDEX(lentĮvykiai[],SMALL(IF(Datos=U$6,ROW(Datos)),ROW(4:4))-PradinėLentelėsEilutė,4),\"\")","v":""}]
[null,null,{"$f":"U6+1","v":"2016-07-04"},null,null,{"$f":"C11+1","v":"2016-07-05"},null,null,{"$f":"F11+1","v":"2016-07-06"},null,null,{"$f":"I11+1","v":"2016-07-07"},null,null,{"$f":"L11+1","v":"2016-07-08"},null,null,{"$f":"O11+1","v":"2016-07-09"},null,null,{"$f":"R11+1","v":"2016-07-10"}]
[null,null,{"$f":"IFERROR(INDEX(lentĮvykiai[],SMALL(IF(Datos=C$11,ROW(Datos)),ROW(1:1))-PradinėLentelėsEilutė,4),\"\")","v":""},null,null,{"$f":"IFERROR(INDEX(lentĮvykiai[],SMALL(IF(Datos=F$11,ROW(Datos)),ROW(1:1))-PradinėLentelėsEilutė,4),\"\")","v":""},null,null,{"$f":"IFERROR(INDEX(lentĮvykiai[],SMALL(IF(Datos=I$11,ROW(Datos)),ROW(1:1))-PradinėLentelėsEilutė,4),\"\")","v":""},null,null,{"$f":"IFERROR(INDEX(lentĮvykiai[],SMALL(IF(Datos=L$11,ROW(Datos)),ROW(1:1))-PradinėLentelėsEilutė,4),\"\")","v":""},null,null,{"$f":"IFERROR(INDEX(lentĮvykiai[],SMALL(IF(Datos=O$11,ROW(Datos)),ROW(1:1))-PradinėLentelėsEilutė,4),\"\")","v":"Miesto taryba"},null,null,{"$f":"IFERROR(INDEX(lentĮvykiai[],SMALL(IF(Datos=R$11,ROW(Datos)),ROW(1:1))-PradinėLentelėsEilutė,4),\"\")","v":""},null,null,{"$f":"IFERROR(INDEX(lentĮvykiai[],SMALL(IF(Datos=U$11,ROW(Datos)),ROW(1:1))-PradinėLentelėsEilutė,4),\"\")","v":""}]
[null,null,{"$f":"IFERROR(INDEX(lentĮvykiai[],SMALL(IF(Datos=C$11,ROW(Datos)),ROW(2:2))-PradinėLentelėsEilutė,4),\"\")","v":""},null,null,{"$f":"IFERROR(INDEX(lentĮvykiai[],SMALL(IF(Datos=F$11,ROW(Datos)),ROW(2:2))-PradinėLentelėsEilutė,4),\"\")","v":""},null,null,{"$f":"IFERROR(INDEX(lentĮvykiai[],SMALL(IF(Datos=I$11,ROW(Datos)),ROW(2:2))-PradinėLentelėsEilutė,4),\"\")","v":""},null,null,{"$f":"IFERROR(INDEX(lentĮvykiai[],SMALL(IF(Datos=L$11,ROW(Datos)),ROW(2:2))-PradinėLentelėsEilutė,4),\"\")","v":""},null,null,{"$f":"IFERROR(INDEX(lentĮvykiai[],SMALL(IF(Datos=O$11,ROW(Datos)),ROW(2:2))-PradinėLentelėsEilutė,4),\"\")","v":""},null,null,{"$f":"IFERROR(INDEX(lentĮvykiai[],SMALL(IF(Datos=R$11,ROW(Datos)),ROW(2:2))-PradinėLentelėsEilutė,4),\"\")","v":""},null,null,{"$f":"IFERROR(INDEX(lentĮvykiai[],SMALL(IF(Datos=U$11,ROW(Datos)),ROW(2:2))-PradinėLentelėsEilutė,4),\"\")","v":""}]
[null,null,{"$f":"IFERROR(INDEX(lentĮvykiai[],SMALL(IF(Datos=C$11,ROW(Datos)),ROW(3:3))-PradinėLentelėsEilutė,4),\"\")","v":""},null,null,{"$f":"IFERROR(INDEX(lentĮvykiai[],SMALL(IF(Datos=F$11,ROW(Datos)),ROW(3:3))-PradinėLentelėsEilutė,4),\"\")","v":""},null,null,{"$f":"IFERROR(INDEX(lentĮvykiai[],SMALL(IF(Datos=I$11,ROW(Datos)),ROW(3:3))-PradinėLentelėsEilutė,4),\"\")","v":""},null,null,{"$f":"IFERROR(INDEX(lentĮvykiai[],SMALL(IF(Datos=L$11,ROW(Datos)),ROW(3:3))-PradinėLentelėsEilutė,4),\"\")","v":""},null,null,{"$f":"IFERROR(INDEX(lentĮvykiai[],SMALL(IF(Datos=O$11,ROW(Datos)),ROW(3:3))-PradinėLentelėsEilutė,4),\"\")","v":""},null,null,{"$f":"IFERROR(INDEX(lentĮvykiai[],SMALL(IF(Datos=R$11,ROW(Datos)),ROW(3:3))-PradinėLentelėsEilutė,4),\"\")","v":""},null,null,{"$f":"IFERROR(INDEX(lentĮvykiai[],SMALL(IF(Datos=U$11,ROW(Datos)),ROW(3:3))-PradinėLentelėsEilutė,4),\"\")","v":""}]
[null,null,{"$f":"IFERROR(INDEX(lentĮvykiai[],SMALL(IF(Datos=C$11,ROW(Datos)),ROW(4:4))-PradinėLentelėsEilutė,4),\"\")","v":""},null,null,{"$f":"IFERROR(INDEX(lentĮvykiai[],SMALL(IF(Datos=F$11,ROW(Datos)),ROW(4:4))-PradinėLentelėsEilutė,4),\"\")","v":""},null,null,{"$f":"IFERROR(INDEX(lentĮvykiai[],SMALL(IF(Datos=I$11,ROW(Datos)),ROW(4:4))-PradinėLentelėsEilutė,4),\"\")","v":""},null,null,{"$f":"IFERROR(INDEX(lentĮvykiai[],SMALL(IF(Datos=L$11,ROW(Datos)),ROW(4:4))-PradinėLentelėsEilutė,4),\"\")","v":""},null,null,{"$f":"IFERROR(INDEX(lentĮvykiai[],SMALL(IF(Datos=O$11,ROW(Datos)),ROW(4:4))-PradinėLentelėsEilutė,4),\"\")","v":""},null,null,{"$f":"IFERROR(INDEX(lentĮvykiai[],SMALL(IF(Datos=R$11,ROW(Datos)),ROW(4:4))-PradinėLentelėsEilutė,4),\"\")","v":""},null,null,{"$f":"IFERROR(INDEX(lentĮvykiai[],SMALL(IF(Datos=U$11,ROW(Datos)),ROW(4:4))-PradinėLentelėsEilutė,4),\"\")","v":""}]
[null,null,{"$f":"U11+1","v":"2016-07-11"},null,null,{"$f":"C16+1","v":"2016-07-12"},null,null,{"$f":"F16+1","v":"2016-07-13"},null,null,{"$f":"I16+1","v":"2016-07-14"},null,null,{"$f":"L16+1","v":"2016-07-15"},null,null,{"$f":"O16+1","v":"2016-07-16"},null,null,{"$f":"R16+1","v":"2016-07-17"}]
[null,null,{"$f":"IFERROR(INDEX(lentĮvykiai[],SMALL(IF(Datos=C$16,ROW(Datos)),ROW(1:1))-PradinėLentelėsEilutė,4),\"\")","v":"Bendruomenės salė Oficialūs pietūs"},null,null,{"$f":"IFERROR(INDEX(lentĮvykiai[],SMALL(IF(Datos=F$16,ROW(Datos)),ROW(1:1))-PradinėLentelėsEilutė,4),\"\")","v":"Senienų paroda"},null,null,{"$f":"IFERROR(INDEX(lentĮvykiai[],SMALL(IF(Datos=I$16,ROW(Datos)),ROW(1:1))-PradinėLentelėsEilutė,4),\"\")","v":""},null,null,{"$f":"IFERROR(INDEX(lentĮvykiai[],SMALL(IF(Datos=L$16,ROW(Datos)),ROW(1:1))-PradinėLentelėsEilutė,4),\"\")","v":"Bendruomenės seminaras"},null,null,{"$f":"IFERROR(INDEX(lentĮvykiai[],SMALL(IF(Datos=O$16,ROW(Datos)),ROW(1:1))-PradinėLentelėsEilutė,4),\"\")","v":"Miesto taryba"},null,null,{"$f":"IFERROR(INDEX(lentĮvykiai[],SMALL(IF(Datos=R$16,ROW(Datos)),ROW(1:1))-PradinėLentelėsEilutė,4),\"\")","v":""},null,null,{"$f":"IFERROR(INDEX(lentĮvykiai[],SMALL(IF(Datos=U$16,ROW(Datos)),ROW(1:1))-PradinėLentelėsEilutė,4),\"\")","v":""}]
[null,null,{"$f":"IFERROR(INDEX(lentĮvykiai[],SMALL(IF(Datos=C$16,ROW(Datos)),ROW(2:2))-PradinėLentelėsEilutė,4),\"\")","v":""},null,null,{"$f":"IFERROR(INDEX(lentĮvykiai[],SMALL(IF(Datos=F$16,ROW(Datos)),ROW(2:2))-PradinėLentelėsEilutė,4),\"\")","v":""},null,null,{"$f":"IFERROR(INDEX(lentĮvykiai[],SMALL(IF(Datos=I$16,ROW(Datos)),ROW(2:2))-PradinėLentelėsEilutė,4),\"\")","v":""},null,null,{"$f":"IFERROR(INDEX(lentĮvykiai[],SMALL(IF(Datos=L$16,ROW(Datos)),ROW(2:2))-PradinėLentelėsEilutė,4),\"\")","v":""},null,null,{"$f":"IFERROR(INDEX(lentĮvykiai[],SMALL(IF(Datos=O$16,ROW(Datos)),ROW(2:2))-PradinėLentelėsEilutė,4),\"\")","v":""},null,null,{"$f":"IFERROR(INDEX(lentĮvykiai[],SMALL(IF(Datos=R$16,ROW(Datos)),ROW(2:2))-PradinėLentelėsEilutė,4),\"\")","v":""},null,null,{"$f":"IFERROR(INDEX(lentĮvykiai[],SMALL(IF(Datos=U$16,ROW(Datos)),ROW(2:2))-PradinėLentelėsEilutė,4),\"\")","v":""}]
[null,null,{"$f":"IFERROR(INDEX(lentĮvykiai[],SMALL(IF(Datos=C$16,ROW(Datos)),ROW(3:3))-PradinėLentelėsEilutė,4),\"\")","v":""},null,null,{"$f":"IFERROR(INDEX(lentĮvykiai[],SMALL(IF(Datos=F$16,ROW(Datos)),ROW(3:3))-PradinėLentelėsEilutė,4),\"\")","v":""},null,null,{"$f":"IFERROR(INDEX(lentĮvykiai[],SMALL(IF(Datos=I$16,ROW(Datos)),ROW(3:3))-PradinėLentelėsEilutė,4),\"\")","v":""},null,null,{"$f":"IFERROR(INDEX(lentĮvykiai[],SMALL(IF(Datos=L$16,ROW(Datos)),ROW(3:3))-PradinėLentelėsEilutė,4),\"\")","v":""},null,null,{"$f":"IFERROR(INDEX(lentĮvykiai[],SMALL(IF(Datos=O$16,ROW(Datos)),ROW(3:3))-PradinėLentelėsEilutė,4),\"\")","v":""},null,null,{"$f":"IFERROR(INDEX(lentĮvykiai[],SMALL(IF(Datos=R$16,ROW(Datos)),ROW(3:3))-PradinėLentelėsEilutė,4),\"\")","v":""},null,null,{"$f":"IFERROR(INDEX(lentĮvykiai[],SMALL(IF(Datos=U$16,ROW(Datos)),ROW(3:3))-PradinėLentelėsEilutė,4),\"\")","v":""}]
[null,null,{"$f":"IFERROR(INDEX(lentĮvykiai[],SMALL(IF(Datos=C$16,ROW(Datos)),ROW(4:4))-PradinėLentelėsEilutė,4),\"\")","v":""},null,null,{"$f":"IFERROR(INDEX(lentĮvykiai[],SMALL(IF(Datos=F$16,ROW(Datos)),ROW(4:4))-PradinėLentelėsEilutė,4),\"\")","v":""},null,null,{"$f":"IFERROR(INDEX(lentĮvykiai[],SMALL(IF(Datos=I$16,ROW(Datos)),ROW(4:4))-PradinėLentelėsEilutė,4),\"\")","v":""},null,null,{"$f":"IFERROR(INDEX(lentĮvykiai[],SMALL(IF(Datos=L$16,ROW(Datos)),ROW(4:4))-PradinėLentelėsEilutė,4),\"\")","v":""},null,null,{"$f":"IFERROR(INDEX(lentĮvykiai[],SMALL(IF(Datos=O$16,ROW(Datos)),ROW(4:4))-PradinėLentelėsEilutė,4),\"\")","v":""},null,null,{"$f":"IFERROR(INDEX(lentĮvykiai[],SMALL(IF(Datos=R$16,ROW(Datos)),ROW(4:4))-PradinėLentelėsEilutė,4),\"\")","v":""},null,null,{"$f":"IFERROR(INDEX(lentĮvykiai[],SMALL(IF(Datos=U$16,ROW(Datos)),ROW(4:4))-PradinėLentelėsEilutė,4),\"\")","v":""}]
[null,null,{"$f":"U16+1","v":"2016-07-18"},null,null,{"$f":"C21+1","v":"2016-07-19"},null,null,{"$f":"F21+1","v":"2016-07-20"},null,null,{"$f":"I21+1","v":"2016-07-21"},null,null,{"$f":"L21+1","v":"2016-07-22"},null,null,{"$f":"O21+1","v":"2016-07-23"},null,null,{"$f":"R21+1","v":"2016-07-24"}]
[null,null,{"$f":"IFERROR(INDEX(lentĮvykiai[],SMALL(IF(Datos=C$21,ROW(Datos)),ROW(1:1))-PradinėLentelėsEilutė,4),\"\")","v":""},null,null,{"$f":"IFERROR(INDEX(lentĮvykiai[],SMALL(IF(Datos=F$21,ROW(Datos)),ROW(1:1))-PradinėLentelėsEilutė,4),\"\")","v":"Strateginio planavimo seminaras"},null,null,{"$f":"IFERROR(INDEX(lentĮvykiai[],SMALL(IF(Datos=I$21,ROW(Datos)),ROW(1:1))-PradinėLentelėsEilutė,4),\"\")","v":"Parko valymas"},null,null,{"$f":"IFERROR(INDEX(lentĮvykiai[],SMALL(IF(Datos=L$21,ROW(Datos)),ROW(1:1))-PradinėLentelėsEilutė,4),\"\")","v":""},null,null,{"$f":"IFERROR(INDEX(lentĮvykiai[],SMALL(IF(Datos=O$21,ROW(Datos)),ROW(1:1))-PradinėLentelėsEilutė,4),\"\")","v":"Miesto taryba"},null,null,{"$f":"IFERROR(INDEX(lentĮvykiai[],SMALL(IF(Datos=R$21,ROW(Datos)),ROW(1:1))-PradinėLentelėsEilutė,4),\"\")","v":""},null,null,{"$f":"IFERROR(INDEX(lentĮvykiai[],SMALL(IF(Datos=U$21,ROW(Datos)),ROW(1:1))-PradinėLentelėsEilutė,4),\"\")","v":""}]
[null,null,{"$f":"IFERROR(INDEX(lentĮvykiai[],SMALL(IF(Datos=C$21,ROW(Datos)),ROW(2:2))-PradinėLentelėsEilutė,4),\"\")","v":""},null,null,{"$f":"IFERROR(INDEX(lentĮvykiai[],SMALL(IF(Datos=F$21,ROW(Datos)),ROW(2:2))-PradinėLentelėsEilutė,4),\"\")","v":""},null,null,{"$f":"IFERROR(INDEX(lentĮvykiai[],SMALL(IF(Datos=I$21,ROW(Datos)),ROW(2:2))-PradinėLentelėsEilutė,4),\"\")","v":""},null,null,{"$f":"IFERROR(INDEX(lentĮvykiai[],SMALL(IF(Datos=L$21,ROW(Datos)),ROW(2:2))-PradinėLentelėsEilutė,4),\"\")","v":""},null,null,{"$f":"IFERROR(INDEX(lentĮvykiai[],SMALL(IF(Datos=O$21,ROW(Datos)),ROW(2:2))-PradinėLentelėsEilutė,4),\"\")","v":""},null,null,{"$f":"IFERROR(INDEX(lentĮvykiai[],SMALL(IF(Datos=R$21,ROW(Datos)),ROW(2:2))-PradinėLentelėsEilutė,4),\"\")","v":""},null,null,{"$f":"IFERROR(INDEX(lentĮvykiai[],SMALL(IF(Datos=U$21,ROW(Datos)),ROW(2:2))-PradinėLentelėsEilutė,4),\"\")","v":""}]
[null,null,{"$f":"IFERROR(INDEX(lentĮvykiai[],SMALL(IF(Datos=C$21,ROW(Datos)),ROW(3:3))-PradinėLentelėsEilutė,4),\"\")","v":""},null,null,{"$f":"IFERROR(INDEX(lentĮvykiai[],SMALL(IF(Datos=F$21,ROW(Datos)),ROW(3:3))-PradinėLentelėsEilutė,4),\"\")","v":""},null,null,{"$f":"IFERROR(INDEX(lentĮvykiai[],SMALL(IF(Datos=I$21,ROW(Datos)),ROW(3:3))-PradinėLentelėsEilutė,4),\"\")","v":""},null,null,{"$f":"IFERROR(INDEX(lentĮvykiai[],SMALL(IF(Datos=L$21,ROW(Datos)),ROW(3:3))-PradinėLentelėsEilutė,4),\"\")","v":""},null,null,{"$f":"IFERROR(INDEX(lentĮvykiai[],SMALL(IF(Datos=O$21,ROW(Datos)),ROW(3:3))-PradinėLentelėsEilutė,4),\"\")","v":""},null,null,{"$f":"IFERROR(INDEX(lentĮvykiai[],SMALL(IF(Datos=R$21,ROW(Datos)),ROW(3:3))-PradinėLentelėsEilutė,4),\"\")","v":""},null,null,{"$f":"IFERROR(INDEX(lentĮvykiai[],SMALL(IF(Datos=U$21,ROW(Datos)),ROW(3:3))-PradinėLentelėsEilutė,4),\"\")","v":""}]
[null,null,{"$f":"IFERROR(INDEX(lentĮvykiai[],SMALL(IF(Datos=C$21,ROW(Datos)),ROW(4:4))-PradinėLentelėsEilutė,4),\"\")","v":""},null,null,{"$f":"IFERROR(INDEX(lentĮvykiai[],SMALL(IF(Datos=F$21,ROW(Datos)),ROW(4:4))-PradinėLentelėsEilutė,4),\"\")","v":""},null,null,{"$f":"IFERROR(INDEX(lentĮvykiai[],SMALL(IF(Datos=I$21,ROW(Datos)),ROW(4:4))-PradinėLentelėsEilutė,4),\"\")","v":""},null,null,{"$f":"IFERROR(INDEX(lentĮvykiai[],SMALL(IF(Datos=L$21,ROW(Datos)),ROW(4:4))-PradinėLentelėsEilutė,4),\"\")","v":""},null,null,{"$f":"IFERROR(INDEX(lentĮvykiai[],SMALL(IF(Datos=O$21,ROW(Datos)),ROW(4:4))-PradinėLentelėsEilutė,4),\"\")","v":""},null,null,{"$f":"IFERROR(INDEX(lentĮvykiai[],SMALL(IF(Datos=R$21,ROW(Datos)),ROW(4:4))-PradinėLentelėsEilutė,4),\"\")","v":""},null,null,{"$f":"IFERROR(INDEX(lentĮvykiai[],SMALL(IF(Datos=U$21,ROW(Datos)),ROW(4:4))-PradinėLentelėsEilutė,4),\"\")","v":""}]
[null,null,{"$f":"U21+1","v":"2016-07-25"},null,null,{"$f":"C26+1","v":"2016-07-26"},null,null,{"$f":"F26+1","v":"2016-07-27"},null,null,{"$f":"I26+1","v":"2016-07-28"},null,null,{"$f":"L26+1","v":"2016-07-29"},null,null,{"$f":"O26+1","v":"2016-07-30"},null,null,{"$f":"R26+1","v":"2016-07-31"}]
[null,null,{"$f":"IFERROR(INDEX(lentĮvykiai[],SMALL(IF(Datos=C$26,ROW(Datos)),ROW(1:1))-PradinėLentelėsEilutė,4),\"\")","v":""},null,null,{"$f":"IFERROR(INDEX(lentĮvykiai[],SMALL(IF(Datos=F$26,ROW(Datos)),ROW(1:1))-PradinėLentelėsEilutė,4),\"\")","v":"Miesto centro apžvalga pėsčiomis"},null,null,{"$f":"IFERROR(INDEX(lentĮvykiai[],SMALL(IF(Datos=I$26,ROW(Datos)),ROW(1:1))-PradinėLentelėsEilutė,4),\"\")","v":""},null,null,{"$f":"IFERROR(INDEX(lentĮvykiai[],SMALL(IF(Datos=L$26,ROW(Datos)),ROW(1:1))-PradinėLentelėsEilutė,4),\"\")","v":""},null,null,{"$f":"IFERROR(INDEX(lentĮvykiai[],SMALL(IF(Datos=O$26,ROW(Datos)),ROW(1:1))-PradinėLentelėsEilutė,4),\"\")","v":"Miesto taryba"},null,null,{"$f":"IFERROR(INDEX(lentĮvykiai[],SMALL(IF(Datos=R$26,ROW(Datos)),ROW(1:1))-PradinėLentelėsEilutė,4),\"\")","v":""},null,null,{"$f":"IFERROR(INDEX(lentĮvykiai[],SMALL(IF(Datos=U$26,ROW(Datos)),ROW(1:1))-PradinėLentelėsEilutė,4),\"\")","v":""}]
[null,null,{"$f":"IFERROR(INDEX(lentĮvykiai[],SMALL(IF(Datos=C$26,ROW(Datos)),ROW(2:2))-PradinėLentelėsEilutė,4),\"\")","v":""},null,null,{"$f":"IFERROR(INDEX(lentĮvykiai[],SMALL(IF(Datos=F$26,ROW(Datos)),ROW(2:2))-PradinėLentelėsEilutė,4),\"\")","v":"Per barus"},null,null,{"$f":"IFERROR(INDEX(lentĮvykiai[],SMALL(IF(Datos=I$26,ROW(Datos)),ROW(2:2))-PradinėLentelėsEilutė,4),\"\")","v":""},null,null,{"$f":"IFERROR(INDEX(lentĮvykiai[],SMALL(IF(Datos=L$26,ROW(Datos)),ROW(2:2))-PradinėLentelėsEilutė,4),\"\")","v":""},null,null,{"$f":"IFERROR(INDEX(lentĮvykiai[],SMALL(IF(Datos=O$26,ROW(Datos)),ROW(2:2))-PradinėLentelėsEilutė,4),\"\")","v":""},null,null,{"$f":"IFERROR(INDEX(lentĮvykiai[],SMALL(IF(Datos=R$26,ROW(Datos)),ROW(2:2))-PradinėLentelėsEilutė,4),\"\")","v":""},null,null,{"$f":"IFERROR(INDEX(lentĮvykiai[],SMALL(IF(Datos=U$26,ROW(Datos)),ROW(2:2))-PradinėLentelėsEilutė,4),\"\")","v":""}]
[null,null,{"$f":"IFERROR(INDEX(lentĮvykiai[],SMALL(IF(Datos=C$26,ROW(Datos)),ROW(3:3))-PradinėLentelėsEilutė,4),\"\")","v":""},null,null,{"$f":"IFERROR(INDEX(lentĮvykiai[],SMALL(IF(Datos=F$26,ROW(Datos)),ROW(3:3))-PradinėLentelėsEilutė,4),\"\")","v":""},null,null,{"$f":"IFERROR(INDEX(lentĮvykiai[],SMALL(IF(Datos=I$26,ROW(Datos)),ROW(3:3))-PradinėLentelėsEilutė,4),\"\")","v":""},null,null,{"$f":"IFERROR(INDEX(lentĮvykiai[],SMALL(IF(Datos=L$26,ROW(Datos)),ROW(3:3))-PradinėLentelėsEilutė,4),\"\")","v":""},null,null,{"$f":"IFERROR(INDEX(lentĮvykiai[],SMALL(IF(Datos=O$26,ROW(Datos)),ROW(3:3))-PradinėLentelėsEilutė,4),\"\")","v":""},null,null,{"$f":"IFERROR(INDEX(lentĮvykiai[],SMALL(IF(Datos=R$26,ROW(Datos)),ROW(3:3))-PradinėLentelėsEilutė,4),\"\")","v":""},null,null,{"$f":"IFERROR(INDEX(lentĮvykiai[],SMALL(IF(Datos=U$26,ROW(Datos)),ROW(3:3))-PradinėLentelėsEilutė,4),\"\")","v":""}]
[null,null,{"$f":"IFERROR(INDEX(lentĮvykiai[],SMALL(IF(Datos=C$26,ROW(Datos)),ROW(4:4))-PradinėLentelėsEilutė,4),\"\")","v":""},null,null,{"$f":"IFERROR(INDEX(lentĮvykiai[],SMALL(IF(Datos=F$26,ROW(Datos)),ROW(4:4))-PradinėLentelėsEilutė,4),\"\")","v":""},null,null,{"$f":"IFERROR(INDEX(lentĮvykiai[],SMALL(IF(Datos=I$26,ROW(Datos)),ROW(4:4))-PradinėLentelėsEilutė,4),\"\")","v":""},null,null,{"$f":"IFERROR(INDEX(lentĮvykiai[],SMALL(IF(Datos=L$26,ROW(Datos)),ROW(4:4))-PradinėLentelėsEilutė,4),\"\")","v":""},null,null,{"$f":"IFERROR(INDEX(lentĮvykiai[],SMALL(IF(Datos=O$26,ROW(Datos)),ROW(4:4))-PradinėLentelėsEilutė,4),\"\")","v":""},null,null,{"$f":"IFERROR(INDEX(lentĮvykiai[],SMALL(IF(Datos=R$26,ROW(Datos)),ROW(4:4))-PradinėLentelėsEilutė,4),\"\")","v":""},null,null,{"$f":"IFERROR(INDEX(lentĮvykiai[],SMALL(IF(Datos=U$26,ROW(Datos)),ROW(4:4))-PradinėLentelėsEilutė,4),\"\")","v":""}]
[null,null,{"$f":"U26+1","v":"2016-08-01"},null,null,{"$f":"C31+1","v":"2016-08-02"},null,null,"PASTABOS:"]
[null,null,{"$f":"IFERROR(INDEX(lentĮvykiai[],SMALL(IF(Datos=C$31,ROW(Datos)),ROW(1:1))-PradinėLentelėsEilutė,4),\"\")","v":""},null,null,{"$f":"IFERROR(INDEX(lentĮvykiai[],SMALL(IF(Datos=F$31,ROW(Datos)),ROW(1:1))-PradinėLentelėsEilutė,4),\"\")","v":""}]
[null,null,{"$f":"IFERROR(INDEX(lentĮvykiai[],SMALL(IF(Datos=C$31,ROW(Datos)),ROW(2:2))-PradinėLentelėsEilutė,4),\"\")","v":""},null,null,{"$f":"IFERROR(INDEX(lentĮvykiai[],SMALL(IF(Datos=F$31,ROW(Datos)),ROW(2:2))-PradinėLentelėsEilutė,4),\"\")","v":""}]
[null,null,{"$f":"IFERROR(INDEX(lentĮvykiai[],SMALL(IF(Datos=C$31,ROW(Datos)),ROW(3:3))-PradinėLentelėsEilutė,4),\"\")","v":""},null,null,{"$f":"IFERROR(INDEX(lentĮvykiai[],SMALL(IF(Datos=F$31,ROW(Datos)),ROW(3:3))-PradinėLentelėsEilutė,4),\"\")","v":""}]
[null,null,{"$f":"IFERROR(INDEX(lentĮvykiai[],SMALL(IF(Datos=C$31,ROW(Datos)),ROW(4:4))-PradinėLentelėsEilutė,4),\"\")","v":""},null,null,{"$f":"IFERROR(INDEX(lentĮvykiai[],SMALL(IF(Datos=F$31,ROW(Datos)),ROW(4:4))-PradinėLentelėsEilutė,4),\"\")","v":""}]

{"sheet":"SPAUSDINAMA VERSIJA","index":2,"n_rows":35,"n_cols":21,"rows_kept":35,"merged":[[1,5,1,11],[30,8,34,20]]}
[]
[null,null,{"$f":"PeržiūrėtiMetus","v":2016},null,null,{"$f":"PeržiūrėtiMėnesį","v":"LIEPA"}]
[]
[null,null,"PR",null,null,"AN",null,null,"TR",null,null,"KT",null,null,"PN",null,null,"ŠT",null,null,"SK"]
[]
[null,null,{"$f":"KALENDORIUS!C6","v":"2016-06-27"},{"$f":"KALENDORIUS!D6","v":0},{"$f":"KALENDORIUS!E6","v":0},{"$f":"KALENDORIUS!F6","v":"2016-06-28"},{"$f":"KALENDORIUS!G6","v":0},{"$f":"KALENDORIUS!H6","v":0},{"$f":"KALENDORIUS!I6","v":"2016-06-29"},{"$f":"KALENDORIUS!J6","v":0},{"$f":"KALENDORIUS!K6","v":0},{"$f":"KALENDORIUS!L6","v":"2016-06-30"},{"$f":"KALENDORIUS!M6","v":0},{"$f":"KALENDORIUS!N6","v":0},{"$f":"KALENDORIUS!O6","v":"2016-07-01"},{"$f":"KALENDORIUS!P6","v":0},{"$f":"KALENDORIUS!Q6","v":0},{"$f":"KALENDORIUS!R6","v":"2016-07-02"},{"$f":"KALENDORIUS!S6","v":0},{"$f":"KALENDORIUS!T6","v":0},{"$f":"KALENDORIUS!U6","v":"2016-07-03"}]
[null,null,{"$f":"KALENDORIUS!C7","v":""},{"$f":"KALENDORIUS!D7","v":0},{"$f":"KALENDORIUS!E7","v":0},{"$f":"KALENDORIUS!F7","v":""},{"$f":"KALENDORIUS!G7","v":0},{"$f":"KALENDORIUS!H7","v":0},{"$f":"KALENDORIUS!I7","v":""},{"$f":"KALENDORIUS!J7","v":0},{"$f":"KALENDORIUS!K7","v":0},{"$f":"KALENDORIUS!L7","v":""},{"$f":"KALENDORIUS!M7","v":0},{"$f":"KALENDORIUS!N7","v":0},{"$f":"KALENDORIUS!O7","v":"Bendruomenės sodas"},{"$f":"KALENDORIUS!P7","v":0},{"$f":"KALENDORIUS!Q7","v":0},{"$f":"KALENDORIUS!R7","v":"Bendruomenės sodas"},{"$f":"KALENDORIUS!S7","v":0},{"$f":"KALENDORIUS!T7","v":0},{"$f":"KALENDORIUS!U7","v":"Kino naktis parke"}]
[null,null,{"$f":"KALENDORIUS!C8","v":""},{"$f":"KALENDORIUS!D8","v":"00:00:00"},{"$f":"KALENDORIUS!E8","v":"00:00:00"},{"$f":"KALENDORIUS!F8","v":""},{"$f":"KALENDORIUS!G8","v":"00:00:00"},{"$f":"KALENDORIUS!H8","v":"00:00:00"},{"$f":"KALENDORIUS!I8","v":""},{"$f":"KALENDORIUS!J8","v":"00:00:00"},{"$f":"KALENDORIUS!K8","v":"00:00:00"},{"$f":"KALENDORIUS!L8","v":""},{"$f":"KALENDORIUS!M8","v":"00:00:00"},{"$f":"KALENDORIUS!N8","v":"00:00:00"},{"$f":"KALENDORIUS!O8","v":"Miesto taryba"},{"$f":"KALENDORIUS!P8","v":"00:00:00"},{"$f":"KALENDORIUS!Q8","v":"00:00:00"},{"$f":"KALENDORIUS!R8","v":""},{"$f":"KALENDORIUS!S8","v":"00:00:00"},{"$f":"KALENDORIUS!T8","v":"00:00:00"},{"$f":"KALENDORIUS!U8","v":""}]
[null,null,{"$f":"KALENDORIUS!C9","v":""},{"$f":"KALENDORIUS!D9","v":0},{"$f":"KALENDORIUS!E9","v":0},{"$f":"KALENDORIUS!F9","v":""},{"$f":"KALENDORIUS!G9","v":0},{"$f":"KALENDORIUS!H9","v":0},{"$f":"KALENDORIUS!I9","v":""},{"$f":"KALENDORIUS!J9","v":0},{"$f":"KALENDORIUS!K9","v":0},{"$f":"KALENDORIUS!L9","v":""},{"$f":"KALENDORIUS!M9","v":0},{"$f":"KALENDORIUS!N9","v":0},{"$f":"KALENDORIUS!O9","v":""},{"$f":"KALENDORIUS!P9","v":0},{"$f":"KALENDORIUS!Q9","v":0},{"$f":"KALENDORIUS!R9","v":""},{"$f":"KALENDORIUS!S9","v":0},{"$f":"KALENDORIUS!T9","v":0},{"$f":"KALENDORIUS!U9","v":""}]
[null,null,{"$f":"KALENDORIUS!C10","v":""},{"$f":"KALENDORIUS!D10","v":0},{"$f":"KALENDORIUS!E10","v":0},{"$f":"KALENDORIUS!F10","v":""},{"$f":"KALENDORIUS!G10","v":0},{"$f":"KALENDORIUS!H10","v":0},{"$f":"KALENDORIUS!I10","v":""},{"$f":"KALENDORIUS!J10","v":0},{"$f":"KALENDORIUS!K10","v":0},{"$f":"KALENDORIUS!L10","v":""},{"$f":"KALENDORIUS!M10","v":0},{"$f":"KALENDORIUS!N10","v":0},{"$f":"KALENDORIUS!O10","v":""},{"$f":"KALENDORIUS!P10","v":0},{"$f":"KALENDORIUS!Q10","v":0},{"$f":"KALENDORIUS!R10","v":""},{"$f":"KALENDORIUS!S10","v":0},{"$f":"KALENDORIUS!T10","v":0},{"$f":"KALENDORIUS!U10","v":""}]
[null,null,{"$f":"KALENDORIUS!C11","v":"2016-07-04"},{"$f":"KALENDORIUS!D11","v":0},{"$f":"KALENDORIUS!E11","v":0},{"$f":"KALENDORIUS!F11","v":"2016-07-05"},{"$f":"KALENDORIUS!G11","v":0},{"$f":"KALENDORIUS!H11","v":0},{"$f":"KALENDORIUS!I11","v":"2016-07-06"},{"$f":"KALENDORIUS!J11","v":0},{"$f":"KALENDORIUS!K11","v":0},{"$f":"KALENDORIUS!L11","v":"2016-07-07"},{"$f":"KALENDORIUS!M11","v":0},{"$f":"KALENDORIUS!N11","v":0},{"$f":"KALENDORIUS!O11","v":"2016-07-08"},{"$f":"KALENDORIUS!P11","v":0},{"$f":"KALENDORIUS!Q11","v":0},{"$f":"KALENDORIUS!R11","v":"2016-07-09"},{"$f":"KALENDORIUS!S11","v":0},{"$f":"KALENDORIUS!T11","v":0},{"$f":"KALENDORIUS!U11","v":"2016-07-10"}]
[null,null,{"$f":"KALENDORIUS!C12","v":""},{"$f":"KALENDORIUS!D12","v":0},{"$f":"KALENDORIUS!E12","v":0},{"$f":"KALENDORIUS!F12","v":""},{"$f":"KALENDORIUS!G12","v":0},{"$f":"KALENDORIUS!H12","v":0},{"$f":"KALENDORIUS!I12","v":""},{"$f":"KALENDORIUS!J12","v":0},{"$f":"KALENDORIUS!K12","v":0},{"$f":"KALENDORIUS!L12","v":""},{"$f":"KALENDORIUS!M12","v":0},{"$f":"KALENDORIUS!N12","v":0},{"$f":"KALENDORIUS!O12","v":"Miesto taryba"},{"$f":"KALENDORIUS!P12","v":0},{"$f":"KALENDORIUS!Q12","v":0},{"$f":"KALENDORIUS!R12","v":""},{"$f":"KALENDORIUS!S12","v":0},{"$f":"KALENDORIUS!T12","v":0},{"$f":"KALENDORIUS!U12","v":""}]
[null,null,{"$f":"KALENDORIUS!C13","v":""},{"$f":"KALENDORIUS!D13","v":0},{"$f":"KALENDORIUS!E13","v":0},{"$f":"KALENDORIUS!F13","v":""},{"$f":"KALENDORIUS!G13","v":0},{"$f":"KALENDORIUS!H13","v":0},{"$f":"KALENDORIUS!I13","v":""},{"$f":"KALENDORIUS!J13","v":0},{"$f":"KALENDORIUS!K13","v":0},{"$f":"KALENDORIUS!L13","v":""},{"$f":"KALENDORIUS!M13","v":0},{"$f":"KALENDORIUS!N13","v":0},{"$f":"KALENDORIUS!O13","v":""},{"$f":"KALENDORIUS!P13","v":0},{"$f":"KALENDORIUS!Q13","v":0},{"$f":"KALENDORIUS!R13","v":""},{"$f":"KALENDORIUS!S13","v":0},{"$f":"KALENDORIUS!T13","v":0},{"$f":"KALENDORIUS!U13","v":""}]
[null,null,{"$f":"KALENDORIUS!C14","v":""},{"$f":"KALENDORIUS!D14","v":0},{"$f":"KALENDORIUS!E14","v":0},{"$f":"KALENDORIUS!F14","v":""},{"$f":"KALENDORIUS!G14","v":0},{"$f":"KALENDORIUS!H14","v":0},{"$f":"KALENDORIUS!I14","v":""},{"$f":"KALENDORIUS!J14","v":0},{"$f":"KALENDORIUS!K14","v":0},{"$f":"KALENDORIUS!L14","v":""},{"$f":"KALENDORIUS!M14","v":0},{"$f":"KALENDORIUS!N14","v":0},{"$f":"KALENDORIUS!O14","v":""},{"$f":"KALENDORIUS!P14","v":0},{"$f":"KALENDORIUS!Q14","v":0},{"$f":"KALENDORIUS!R14","v":""},{"$f":"KALENDORIUS!S14","v":0},{"$f":"KALENDORIUS!T14","v":0},{"$f":"KALENDORIUS!U14","v":""}]
[null,null,{"$f":"KALENDORIUS!C15","v":""},{"$f":"KALENDORIUS!D15","v":0},{"$f":"KALENDORIUS!E15","v":0},{"$f":"KALENDORIUS!F15","v":""},{"$f":"KALENDORIUS!G15","v":0},{"$f":"KALENDORIUS!H15","v":0},{"$f":"KALENDORIUS!I15","v":""},{"$f":"KALENDORIUS!J15","v":0},{"$f":"KALENDORIUS!K15","v":0},{"$f":"KALENDORIUS!L15","v":""},{"$f":"KALENDORIUS!M15","v":0},{"$f":"KALENDORIUS!N15","v":0},{"$f":"KALENDORIUS!O15","v":""},{"$f":"KALENDORIUS!P15","v":0},{"$f":"KALENDORIUS!Q15","v":0},{"$f":"KALENDORIUS!R15","v":""},{"$f":"KALENDORIUS!S15","v":0},{"$f":"KALENDORIUS!T15","v":0},{"$f":"KALENDORIUS!U15","v":""}]
[null,null,{"$f":"KALENDORIUS!C16","v":"2016-07-11"},{"$f":"KALENDORIUS!D16","v":0},{"$f":"KALENDORIUS!E16","v":0},{"$f":"KALENDORIUS!F16","v":"2016-07-12"},{"$f":"KALENDORIUS!G16","v":0},{"$f":"KALENDORIUS!H16","v":0},{"$f":"KALENDORIUS!I16","v":"2016-07-13"},{"$f":"KALENDORIUS!J16","v":0},{"$f":"KALENDORIUS!K16","v":0},{"$f":"KALENDORIUS!L16","v":"2016-07-14"},{"$f":"KALENDORIUS!M16","v":0},{"$f":"KALENDORIUS!N16","v":0},{"$f":"KALENDORIUS!O16","v":"2016-07-15"},{"$f":"KALENDORIUS!P16","v":0},{"$f":"KALENDORIUS!Q16","v":0},{"$f":"KALENDORIUS!R16","v":"2016-07-16"},{"$f":"KALENDORIUS!S16","v":0},{"$f":"KALENDORIUS!T16","v":0},{"$f":"KALENDORIUS!U16","v":"2016-07-17"}]
[null,null,{"$f":"KALENDORIUS!C17","v":"Bendruomenės salė Oficialūs pietūs"},{"$f":"KALENDORIUS!D17","v":0},{"$f":"KALENDORIUS!E17","v":0},{"$f":"KALENDORIUS!F17","v":"Senienų paroda"},{"$f":"KALENDORIUS!G17","v":0},{"$f":"KALENDORIUS!H17","v":0},{"$f":"KALENDORIUS!I17","v":""},{"$f":"KALENDORIUS!J17","v":0},{"$f":"KALENDORIUS!K17","v":0},{"$f":"KALENDORIUS!L17","v":"Bendruomenės seminaras"},{"$f":"KALENDORIUS!M17","v":0},{"$f":"KALENDORIUS!N17","v":0},{"$f":"KALENDORIUS!O17","v":"Miesto taryba"},{"$f":"KALENDORIUS!P17","v":0},{"$f":"KALENDORIUS!Q17","v":0},{"$f":"KALENDORIUS!R17","v":""},{"$f":"KALENDORIUS!S17","v":0},{"$f":"KALENDORIUS!T17","v":0},{"$f":"KALENDORIUS!U17","v":""}]
[null,null,{"$f":"KALENDORIUS!C18","v":""},{"$f":"KALENDORIUS!D18","v":0},{"$f":"KALENDORIUS!E18","v":0},{"$f":"KALENDORIUS!F18","v":""},{"$f":"KALENDORIUS!G18","v":0},{"$f":"KALENDORIUS!H18","v":0},{"$f":"KALENDORIUS!I18","v":""},{"$f":"KALENDORIUS!J18","v":0},{"$f":"KALENDORIUS!K18","v":0},{"$f":"KALENDORIUS!L18","v":""},{"$f":"KALENDORIUS!M18","v":0},{"$f":"KALENDORIUS!N18","v":0},{"$f":"KALENDORIUS!O18","v":""},{"$f":"KALENDORIUS!P18","v":0},{"$f":"KALENDORIUS!Q18","v":0},{"$f":"KALENDORIUS!R18","v":""},{"$f":"KALENDORIUS!S18","v":0},{"$f":"KALENDORIUS!T18","v":0},{"$f":"KALENDORIUS!U18","v":""}]
[null,null,{"$f":"KALENDORIUS!C19","v":""},{"$f":"KALENDORIUS!D19","v":0},{"$f":"KALENDORIUS!E19","v":0},{"$f":"KALENDORIUS!F19","v":""},{"$f":"KALENDORIUS!G19","v":0},{"$f":"KALENDORIUS!H19","v":0},{"$f":"KALENDORIUS!I19","v":""},{"$f":"KALENDORIUS!J19","v":0},{"$f":"KALENDORIUS!K19","v":0},{"$f":"KALENDORIUS!L19","v":""},{"$f":"KALENDORIUS!M19","v":0},{"$f":"KALENDORIUS!N19","v":0},{"$f":"KALENDORIUS!O19","v":""},{"$f":"KALENDORIUS!P19","v":0},{"$f":"KALENDORIUS!Q19","v":0},{"$f":"KALENDORIUS!R19","v":""},{"$f":"KALENDORIUS!S19","v":0},{"$f":"KALENDORIUS!T19","v":0},{"$f":"KALENDORIUS!U19","v":""}]
[null,null,{"$f":"KALENDORIUS!C20","v":""},{"$f":"KALENDORIUS!D20","v":0},{"$f":"KALENDORIUS!E20","v":0},{"$f":"KALENDORIUS!F20","v":""},{"$f":"KALENDORIUS!G20","v":0},{"$f":"KALENDORIUS!H20","v":0},{"$f":"KALENDORIUS!I20","v":""},{"$f":"KALENDORIUS!J20","v":0},{"$f":"KALENDORIUS!K20","v":0},{"$f":"KALENDORIUS!L20","v":""},{"$f":"KALENDORIUS!M20","v":0},{"$f":"KALENDORIUS!N20","v":0},{"$f":"KALENDORIUS!O20","v":""},{"$f":"KALENDORIUS!P20","v":0},{"$f":"KALENDORIUS!Q20","v":0},{"$f":"KALENDORIUS!R20","v":""},{"$f":"KALENDORIUS!S20","v":0},{"$f":"KALENDORIUS!T20","v":0},{"$f":"KALENDORIUS!U20","v":""}]
[null,null,{"$f":"KALENDORIUS!C21","v":"2016-07-18"},{"$f":"KALENDORIUS!D21","v":0},{"$f":"KALENDORIUS!E21","v":0},{"$f":"KALENDORIUS!F21","v":"2016-07-19"},{"$f":"KALENDORIUS!G21","v":0},{"$f":"KALENDORIUS!H21","v":0},{"$f":"KALENDORIUS!I21","v":"2016-07-20"},{"$f":"KALENDORIUS!J21","v":0},{"$f":"KALENDORIUS!K21","v":0},{"$f":"KALENDORIUS!L21","v":"2016-07-21"},{"$f":"KALENDORIUS!M21","v":0},{"$f":"KALENDORIUS!N21","v":0},{"$f":"KALENDORIUS!O21","v":"2016-07-22"},{"$f":"KALENDORIUS!P21","v":0},{"$f":"KALENDORIUS!Q21","v":0},{"$f":"KALENDORIUS!R21","v":"2016-07-23"},{"$f":"KALENDORIUS!S21","v":0},{"$f":"KALENDORIUS!T21","v":0},{"$f":"KALENDORIUS!U21","v":"2016-07-24"}]
[null,null,{"$f":"KALENDORIUS!C22","v":""},{"$f":"KALENDORIUS!D22","v":0},{"$f":"KALENDORIUS!E22","v":0},{"$f":"KALENDORIUS!F22","v":"Strateginio planavimo seminaras"},{"$f":"KALENDORIUS!G22","v":0},{"$f":"KALENDORIUS!H22","v":0},{"$f":"KALENDORIUS!I22","v":"Parko valymas"},{"$f":"KALENDORIUS!J22","v":0},{"$f":"KALENDORIUS!K22","v":0},{"$f":"KALENDORIUS!L22","v":""},{"$f":"KALENDORIUS!M22","v":0},{"$f":"KALENDORIUS!N22","v":0},{"$f":"KALENDORIUS!O22","v":"Miesto taryba"},{"$f":"KALENDORIUS!P22","v":0},{"$f":"KALENDORIUS!Q22","v":0},{"$f":"KALENDORIUS!R22","v":""},{"$f":"KALENDORIUS!S22","v":0},{"$f":"KALENDORIUS!T22","v":0},{"$f":"KALENDORIUS!U22","v":""}]
[null,null,{"$f":"KALENDORIUS!C23","v":""},{"$f":"KALENDORIUS!D23","v":0},{"$f":"KALENDORIUS!E23","v":0},{"$f":"KALENDORIUS!F23","v":""},{"$f":"KALENDORIUS!G23","v":0},{"$f":"KALENDORIUS!H23","v":0},{"$f":"KALENDORIUS!I23","v":""},{"$f":"KALENDORIUS!J23","v":0},{"$f":"KALENDORIUS!K23","v":0},{"$f":"KALENDORIUS!L23","v":""},{"$f":"KALENDORIUS!M23","v":0},{"$f":"KALENDORIUS!N23","v":0},{"$f":"KALENDORIUS!O23","v":""},{"$f":"KALENDORIUS!P23","v":0},{"$f":"KALENDORIUS!Q23","v":0},{"$f":"KALENDORIUS!R23","v":""},{"$f":"KALENDORIUS!S23","v":0},{"$f":"KALENDORIUS!T23","v":0},{"$f":"KALENDORIUS!U23","v":""}]
[null,null,{"$f":"KALENDORIUS!C24","v":""},{"$f":"KALENDORIUS!D24","v":0},{"$f":"KALENDORIUS!E24","v":0},{"$f":"KALENDORIUS!F24","v":""},{"$f":"KALENDORIUS!G24","v":0},{"$f":"KALENDORIUS!H24","v":0},{"$f":"KALENDORIUS!I24","v":""},{"$f":"KALENDORIUS!J24","v":0},{"$f":"KALENDORIUS!K24","v":0},{"$f":"KALENDORIUS!L24","v":""},{"$f":"KALENDORIUS!M24","v":0},{"$f":"KALENDORIUS!N24","v":0},{"$f":"KALENDORIUS!O24","v":""},{"$f":"KALENDORIUS!P24","v":0},{"$f":"KALENDORIUS!Q24","v":0},{"$f":"KALENDORIUS!R24","v":""},{"$f":"KALENDORIUS!S24","v":0},{"$f":"KALENDORIUS!T24","v":0},{"$f":"KALENDORIUS!U24","v":""}]
[null,null,{"$f":"KALENDORIUS!C25","v":""},{"$f":"KALENDORIUS!D25","v":0},{"$f":"KALENDORIUS!E25","v":0},{"$f":"KALENDORIUS!F25","v":""},{"$f":"KALENDORIUS!G25","v":0},{"$f":"KALENDORIUS!H25","v":0},{"$f":"KALENDORIUS!I25","v":""},{"$f":"KALENDORIUS!J25","v":0},{"$f":"KALENDORIUS!K25","v":0},{"$f":"KALENDORIUS!L25","v":""},{"$f":"KALENDORIUS!M25","v":0},{"$f":"KALENDORIUS!N25","v":0},{"$f":"KALENDORIUS!O25","v":""},{"$f":"KALENDORIUS!P25","v":0},{"$f":"KALENDORIUS!Q25","v":0},{"$f":"KALENDORIUS!R25","v":""},{"$f":"KALENDORIUS!S25","v":0},{"$f":"KALENDORIUS!T25","v":0},{"$f":"KALENDORIUS!U25","v":""}]
[null,null,{"$f":"KALENDORIUS!C26","v":"2016-07-25"},{"$f":"KALENDORIUS!D26","v":0},{"$f":"KALENDORIUS!E26","v":0},{"$f":"KALENDORIUS!F26","v":"2016-07-26"},{"$f":"KALENDORIUS!G26","v":0},{"$f":"KALENDORIUS!H26","v":0},{"$f":"KALENDORIUS!I26","v":"2016-07-27"},{"$f":"KALENDORIUS!J26","v":0},{"$f":"KALENDORIUS!K26","v":0},{"$f":"KALENDORIUS!L26","v":"2016-07-28"},{"$f":"KALENDORIUS!M26","v":0},{"$f":"KALENDORIUS!N26","v":0},{"$f":"KALENDORIUS!O26","v":"2016-07-29"},{"$f":"KALENDORIUS!P26","v":0},{"$f":"KALENDORIUS!Q26","v":0},{"$f":"KALENDORIUS!R26","v":"2016-07-30"},{"$f":"KALENDORIUS!S26","v":0},{"$f":"KALENDORIUS!T26","v":0},{"$f":"KALENDORIUS!U26","v":"2016-07-31"}]
[null,null,{"$f":"KALENDORIUS!C27","v":""},{"$f":"KALENDORIUS!D27","v":0},{"$f":"KALENDORIUS!E27","v":0},{"$f":"KALENDORIUS!F27","v":"Miesto centro apžvalga pėsčiomis"},{"$f":"KALENDORIUS!G27","v":0},{"$f":"KALENDORIUS!H27","v":0},{"$f":"KALENDORIUS!I27","v":""},{"$f":"KALENDORIUS!J27","v":0},{"$f":"KALENDORIUS!K27","v":0},{"$f":"KALENDORIUS!L27","v":""},{"$f":"KALENDORIUS!M27","v":0},{"$f":"KALENDORIUS!N27","v":0},{"$f":"KALENDORIUS!O27","v":"Miesto taryba"},{"$f":"KALENDORIUS!P27","v":0},{"$f":"KALENDORIUS!Q27","v":0},{"$f":"KALENDORIUS!R27","v":""},{"$f":"KALENDORIUS!S27","v":0},{"$f":"KALENDORIUS!T27","v":0},{"$f":"KALENDORIUS!U27","v":""}]
[null,null,{"$f":"KALENDORIUS!C28","v":""},{"$f":"KALENDORIUS!D28","v":0},{"$f":"KALENDORIUS!E28","v":0},{"$f":"KALENDORIUS!F28","v":"Per barus"},{"$f":"KALENDORIUS!G28","v":0},{"$f":"KALENDORIUS!H28","v":0},{"$f":"KALENDORIUS!I28","v":""},{"$f":"KALENDORIUS!J28","v":0},{"$f":"KALENDORIUS!K28","v":0},{"$f":"KALENDORIUS!L28","v":""},{"$f":"KALENDORIUS!M28","v":0},{"$f":"KALENDORIUS!N28","v":0},{"$f":"KALENDORIUS!O28","v":""},{"$f":"KALENDORIUS!P28","v":0},{"$f":"KALENDORIUS!Q28","v":0},{"$f":"KALENDORIUS!R28","v":""},{"$f":"KALENDORIUS!S28","v":0},{"$f":"KALENDORIUS!T28","v":0},{"$f":"KALENDORIUS!U28","v":""}]
[null,null,{"$f":"KALENDORIUS!C29","v":""},{"$f":"KALENDORIUS!D29","v":0},{"$f":"KALENDORIUS!E29","v":0},{"$f":"KALENDORIUS!F29","v":""},{"$f":"KALENDORIUS!G29","v":0},{"$f":"KALENDORIUS!H29","v":0},{"$f":"KALENDORIUS!I29","v":""},{"$f":"KALENDORIUS!J29","v":0},{"$f":"KALENDORIUS!K29","v":0},{"$f":"KALENDORIUS!L29","v":""},{"$f":"KALENDORIUS!M29","v":0},{"$f":"KALENDORIUS!N29","v":0},{"$f":"KALENDORIUS!O29","v":""},{"$f":"KALENDORIUS!P29","v":0},{"$f":"KALENDORIUS!Q29","v":0},{"$f":"KALENDORIUS!R29","v":""},{"$f":"KALENDORIUS!S29","v":0},{"$f":"KALENDORIUS!T29","v":0},{"$f":"KALENDORIUS!U29","v":""}]
[null,null,{"$f":"KALENDORIUS!C30","v":""},{"$f":"KALENDORIUS!D30","v":0},{"$f":"KALENDORIUS!E30","v":0},{"$f":"KALENDORIUS!F30","v":""},{"$f":"KALENDORIUS!G30","v":0},{"$f":"KALENDORIUS!H30","v":0},{"$f":"KALENDORIUS!I30","v":""},{"$f":"KALENDORIUS!J30","v":0},{"$f":"KALENDORIUS!K30","v":0},{"$f":"KALENDORIUS!L30","v":""},{"$f":"KALENDORIUS!M30","v":0},{"$f":"KALENDORIUS!N30","v":0},{"$f":"KALENDORIUS!O30","v":""},{"$f":"KALENDORIUS!P30","v":0},{"$f":"KALENDORIUS!Q30","v":0},{"$f":"KALENDORIUS!R30","v":""},{"$f":"KALENDORIUS!S30","v":0},{"$f":"KALENDORIUS!T30","v":0},{"$f":"KALENDORIUS!U30","v":""}]
[null,null,{"$f":"KALENDORIUS!C31","v":"2016-08-01"},{"$f":"KALENDORIUS!D31","v":0},{"$f":"KALENDORIUS!E31","v":0},{"$f":"KALENDORIUS!F31","v":"2016-08-02"},null,null,{"$f":"KALENDORIUS!I31","v":"PASTABOS:"}]
[null,null,{"$f":"KALENDORIUS!C32","v":""},{"$f":"KALENDORIUS!D32","v":0},{"$f":"KALENDORIUS!E32","v":0},{"$f":"KALENDORIUS!F32","v":""}]
[null,null,{"$f":"KALENDORIUS!C33","v":""},{"$f":"KALENDORIUS!D33","v":0},{"$f":"KALENDORIUS!E33","v":0},{"$f":"KALENDORIUS!F33","v":""}]
[null,null,{"$f":"KALENDORIUS!C34","v":""},{"$f":"KALENDORIUS!D34","v":0},{"$f":"KALENDORIUS!E34","v":0},{"$f":"KALENDORIUS!F34","v":""}]
[null,null,{"$f":"KALENDORIUS!C35","v":""},{"$f":"KALENDORIUS!D35","v":0},{"$f":"KALENDORIUS!E35","v":0},{"$f":"KALENDORIUS!F35","v":""}]

{"sheet":"ADMINISTRAVIMAS","index":3,"n_rows":14,"n_cols":3,"rows_kept":14,"hidden":true}
[]
[null,"MĖNUO","SKAIČIUS"]
[null,"SAUSIS",1]
[null,"VASARIS",2]
[null,"KOVAS",3]
[null,"BALANDIS",4]
[null,"GEGUŽĖ",5]
[null,"BIRŽELIS",6]
[null,"LIEPA",7]
[null,"RUGPJŪTIS",8]
[null,"RUGSĖJIS",9]
[null,"SPALIS",10]
[null,"LAPKRITIS",11]
[null,"GRUODIS",12]